fUST/lending_fUST_20251008
["ID","MTS","AMOUNT","RATE_DAILY","PERIOD"]
[389968002,1759912254539,-151.0,0.0002163,7]
[389968003,1759912254569,-151.0,0.0002163,7]
[389968004,1759912254579,-500.0,0.00021643,2]
[389968005,1759912254589,-151.0,0.00021643,2]
[389968006,1759912254598,-500.0,0.00021643,2]
[389968007,1759912254608,-151.0,0.00021643,2]
[389968008,1759912254617,-151.0,0.00021643,2]
[389968009,1759912254626,-151.76335493,0.00021643,2]
[389968010,1759912254637,-151.0,0.00021643,2]
[389968011,1759912254646,-151.0,0.00021643,2]
[389968012,1759912254656,-263.15089964,0.00021643,2]
[389968013,1759912254665,-500.0,0.00021643,2]
[389968014,1759912254675,-770.0,0.00021643,2]
[389968015,1759912254684,-500.0,0.00021643,2]
[389968016,1759912254694,-276.55960695,0.00021643,2]
[389968017,1759912254703,-501.6580221,0.00021643,2]
[389968018,1759912254713,-151.36240746,0.00021643,2]
[389968019,1759912254725,-151.0,0.00021643,2]
[389968020,1759912254734,-500.0,0.00021643,2]
[389968021,1759912254744,-162.44937264,0.00021643,2]
[389968022,1759912254753,-500.0,0.00021643,2]
[389968023,1759912254763,-151.0,0.00021643,2]
[389968024,1759912254773,-254.92563901,0.00021643,2]
[389968025,1759912254786,-500.0,0.00021643,2]
[389968026,1759912254796,-500.0,0.00021643,2]
[389968027,1759912254805,-500.0,0.00021643,2]
[389968028,1759912254815,-500.0,0.00021643,2]
[389968029,1759912254824,-500.0,0.00021643,2]
[389968030,1759912254835,-338.56014387,0.00021643,2]
[389968031,1759912254845,-175.48207528,0.00021643,2]
[389968032,1759912254856,-500.0,0.00021643,2]
[389968033,1759912254869,-500.0,0.00021643,2]
[389968034,1759912254879,-1045.16,0.00021643,2]
[389968035,1759912254898,-500.0,0.00021643,2]
[389968036,1759912254911,-500.0,0.00021643,2]
[389968037,1759912254921,-500.0,0.00021643,2]
[389968038,1759912254930,-500.0,0.00021643,2]
[389968039,1759912254940,-500.0,0.00021643,2]
[389968040,1759912254949,-500.0,0.00021643,2]
[389968041,1759912254959,-500.0,0.00021643,2]
[389968042,1759912254968,-500.0,0.00021643,2]
[389968043,1759912254977,-500.0,0.00021643,2]
[389968044,1759912254987,-500.0,0.00021643,2]
[389968045,1759912254996,-500.0,0.00021643,2]
[389968046,1759912255005,-500.0,0.00021643,2]
[389968047,1759912255015,-500.0,0.00021643,2]
[389968048,1759912255024,-500.0,0.00021643,2]
[389968049,1759912255034,-500.0,0.00021643,2]
[389968050,1759912255044,-480.86471012,0.00021643,2]
[389968051,1759912255054,-808.81,0.00021643,2]
[389968052,1759912255063,-500.0,0.00021643,2]
[389968053,1759912255072,-803.49,0.00021643,2]
[389968054,1759912255081,-549.9,0.00021643,2]
[389968055,1759912255090,-500.0,0.00021643,2]
[389968056,1759912255099,-500.0,0.00021643,2]
[389968057,1759912255109,-556.07,0.00021643,2]
[389968058,1759912255118,-500.0,0.00021643,2]
[389968059,1759912255128,-961.27,0.00021643,2]
[389968060,1759912255137,-151.0,0.00021643,7]
[389968061,1759912255146,-151.692163,0.00021643,7]
[389968062,1759912255155,-500.0,0.00021643,2]
[389968063,1759912255165,-726.74,0.00021643,2]
[389968064,1759912255175,-778.44,0.00021643,2]
[389968065,1759912255183,-500.0,0.00021643,2]
[389968066,1759912255193,-503.30483131,0.00021643,2]
[389968067,1759912255203,-500.0,0.00021643,2]
[389968068,1759912255212,-500.0,0.00021643,2]
[389968069,1759912255221,-151.0,0.00021643,7]
[389968070,1759912255231,-151.58141,0.00021643,7]
[389968071,1759912255241,-500.0,0.00021643,2]
[389968072,1759912255250,-213.46498008,0.00021643,2]
[389968073,1759912255260,-500.0,0.00021643,2]
[389968074,1759912255268,-827.81,0.00021643,2]
[389968075,1759912255278,-631.12,0.00021643,2]
[389968076,1759912255288,-500.0,0.00021643,2]
[389968077,1759912255297,-151.0,0.00021643,7]
[389968078,1759912255307,-151.0,0.00021643,7]
[389968079,1759912255316,-152.420299,0.00021643,7]
[389968080,1759912255326,-151.0,0.00021643,7]
[389968081,1759912255336,-500.0,0.00021643,2]
[389968082,1759912255345,-151.0,0.00021643,7]
[389968083,1759912255355,-151.860604,0.00021643,7]
[389968084,1759912255365,-500.0,0.00021643,2]
[389968085,1759912255375,-551.51,0.00021643,2]
[389968086,1759912255384,-1224.64,0.00021643,2]
[389968087,1759912255393,-500.0,0.00021643,2]
[389968088,1759912255403,-1000.0,0.00021643,2]
[389968089,1759912255412,-151.0,0.00021643,7]
[389968090,1759912255421,-151.0,0.00021643,7]
[389968091,1759912255430,-500.0,0.00021643,2]
[389968092,1759912255440,-151.927353,0.00021643,7]
[389968093,1759912255449,-500.0,0.00021643,2]
[389968094,1759912255458,-1470.71,0.00021643,2]
[389968095,1759912255467,-757.2,0.00021643,2]
[389968096,1759912255477,-167.53994695,0.00021643,2]
[389968097,1759912263366,1500.0,0.00028767,120]
[389968098,1759912351054,1500.0,0.00028767,120]
[389968099,1759912379959,156.590762,0.00024,30]
[389968100,1759912422395,500.0,8.219e-05,2]
[389968101,1759912422886,500.0,8.493e-05,2]
[389968102,1759912965373,156.590762,0.00024,30]
[389968103,1759913030194,303.0,0.00028767,120]
[389968104,1759913244136,-276.57500875,0.0001976,2]
[389968105,1759913253122,-1094.65100961,0.0001976,2]
[389968655,1759913438368,-449.31152088,0.0001976,2]
[389968656,1759913438379,-1740.30123398,0.0001976,2]
[389968662,1759913438479,-3034.47054507,0.0001976,2]
[389968663,1759913438490,-150.0,0.0001986,2]
[389968665,1759913438500,-186.21822421,0.0002036,2]
[389968667,1759913438511,-172.5,0.0002046,2]
[389968668,1759913438520,-996.62902734,0.00020879,2]
[389968670,1759913438530,-273.19,0.00021,2]
[389968672,1759913438539,-432.0,0.0002106,2]
[389968673,1759913438549,-195.0,0.0002106,2]
[389968674,1759913438559,-1200.0,0.00021168,2]
[389968675,1759913438568,-300.0,0.00021193,2]
[389968677,1759913438578,-300.0,0.00021193,2]
[389968680,1759913438587,-300.0,0.00021193,2]
[389968682,1759913438597,-300.0,0.00021193,2]
[389968684,1759913438608,-402.0838479,0.00021193,2]
[389968686,1759913438618,-160.0,0.00021193,2]
[389968688,1759913438628,-160.0,0.00021193,2]
[389968690,1759913438637,-11085.05802342,0.00021194,2]
[389968693,1759913438648,-432.0,0.00021199,2]
[389968695,1759913438658,-432.0,0.00021234,2]
[389968697,1759913438668,-432.0,0.00021251,2]
[389968698,1759913438678,-432.0,0.00021253,2]
[389968700,1759913438689,-234.25206901,0.00021262,2]
[389968702,1759913438698,-500.0,0.00021268,2]
[389968704,1759913438708,-500.0,0.00021268,2]
[389968705,1759913438718,-500.0,0.00021268,2]
[389968706,1759913438728,-500.0,0.00021268,2]
[389968707,1759913438738,-500.0,0.00021268,2]
[389968708,1759913438748,-500.0,0.00021268,2]
[389968709,1759913438758,-207.78088565,0.00021268,2]
[389968710,1759913438768,-500.0,0.00021268,2]
[389968711,1759913438778,-500.0,0.00021268,2]
[389968712,1759913438788,-500.0,0.00021268,2]
[389968713,1759913438797,-331.10984713,0.00021268,2]
[389968714,1759913438807,-285.09655398,0.00021268,2]
[389968715,1759913438816,-500.0,0.00021268,2]
[389968716,1759913438827,-500.0,0.00021268,2]
[389968717,1759913438836,-650.76762687,0.00021268,2]
[389968718,1759913438846,-615.97158746,0.00021268,2]
[389968719,1759913438856,-500.0,0.00021268,2]
[389968720,1759913438867,-500.0,0.00021268,2]
[389968721,1759913438877,-502.99224704,0.00021268,2]
[389968722,1759913438887,-2581.60746921,0.00021269,2]
[389968723,1759913438897,-1876.57740581,0.00021269,2]
[389968724,1759913438907,-28239.79689835,0.00021269,3]
[389968725,1759913438916,-432.0,0.00021273,2]
[389968726,1759913438926,-432.0,0.00021309,2]
[389968727,1759913438936,-996.62902734,0.00021335,2]
[389968728,1759913438945,-1000.0,0.00021356,2]
[389968729,1759913438954,-517.47399308,0.00021356,2]
[389968730,1759913438964,-18603.8837,0.00021356,2]
[389968731,1759913438974,-500.0,0.00021356,2]
[389968732,1759913438984,-500.0,0.00021356,2]
[389968733,1759913438994,-500.0,0.00021356,2]
[389968734,1759913439004,-500.0,0.00021356,2]
[389968735,1759913439014,-253.11482287,0.00021356,2]
[389968736,1759913439025,-500.0,0.00021356,2]
[389968737,1759913439034,-500.0,0.00021356,2]
[389968738,1759913439044,-500.0,0.00021356,2]
[389968739,1759913439055,-500.0,0.00021356,2]
[389968740,1759913439065,-500.0,0.00021356,2]
[389968741,1759913439075,-500.0,0.00021356,2]
[389968742,1759913439084,-500.0,0.00021356,2]
[389968743,1759913439094,-500.0,0.00021356,2]
[389968744,1759913439104,-500.0,0.00021356,2]
[389968745,1759913439114,-500.0,0.00021356,2]
[389968746,1759913439128,-500.0,0.00021356,2]
[389968747,1759913439138,-500.0,0.00021356,2]
[389968748,1759913439148,-500.0,0.00021356,2]
[389968749,1759913439158,-500.0,0.00021356,2]
[389968750,1759913439168,-924.24,0.00021359,3]
[389968751,1759913439177,-462.12,0.00021359,3]
[389968752,1759913439187,-231.06,0.00021359,3]
[389968753,1759913439196,-693.23,0.00021359,3]
[389968754,1759913439207,-160.0,0.0002136,2]
[389968755,1759913439217,-160.0,0.0002136,2]
[389968756,1759913439227,-160.0,0.00021361,2]
[389968757,1759913439237,-311.371,0.00021365,2]
[389968758,1759913439248,-155.0,0.00021368,2]
[389968759,1759913439258,-500.0,0.00021369,2]
[389968760,1759913439268,-348.06178688,0.00021369,2]
[389968761,1759913439279,-500.0,0.00021369,2]
[389968762,1759913439289,-480.78310842,0.00021369,2]
[389968763,1759913439299,-482.76278669,0.00021369,2]
[389968764,1759913439309,-500.0,0.00021369,2]
[389968765,1759913439319,-500.0,0.00021369,2]
[389968766,1759913439328,-500.0,0.00021369,2]
[389968767,1759913439339,-500.0,0.00021369,2]
[389968768,1759913439350,-530.69263608,0.00021369,2]
[389968769,1759913439360,-500.0,0.00021369,2]
[389968770,1759913439369,-500.0,0.00021369,2]
[389968771,1759913439379,-506.15442407,0.00021369,2]
[389968772,1759913439388,-500.0,0.00021369,2]
[389968773,1759913439398,-480.62103042,0.00021369,2]
[389968774,1759913439408,-500.0,0.00021369,2]
[389968775,1759913439417,-520.0,0.00021369,3]
[389968776,1759913439428,-502.62851123,0.00021369,2]
[389968777,1759913439438,-500.0,0.00021369,2]
[389968778,1759913439447,-500.0,0.00021369,2]
[389968779,1759913439457,-500.0,0.00021369,2]
[389968780,1759913439467,-481.9587971,0.00021369,2]
[389968781,1759913439476,-500.0,0.00021369,2]
[389968782,1759913439486,-500.0,0.00021369,2]
[389968783,1759913439496,-1003.43,0.00021369,2]
[389968784,1759913439505,-500.0,0.00021369,2]
[389968785,1759913439515,-500.0,0.00021369,2]
[389968786,1759913439524,-626.69998853,0.00021369,2]
[389968787,1759913439533,-500.0,0.00021369,2]
[389968788,1759913439542,-488.51803412,0.00021369,2]
[389968789,1759913439552,-501.25366752,0.00021369,2]
[389968790,1759913439561,-500.0,0.00021369,2]
[389968791,1759913439571,-500.0,0.00021369,2]
[389968792,1759913439580,-500.0,0.00021369,2]
[389968793,1759913439589,-500.0,0.00021369,2]
[389968794,1759913439599,-500.0,0.00021369,2]
[389968795,1759913439608,-500.0,0.00021369,2]
[389968796,1759913439617,-500.0,0.00021369,2]
[389968797,1759913439627,-500.0,0.00021369,2]
[389968798,1759913439637,-500.0,0.00021369,2]
[389968799,1759913439647,-503.44490376,0.00021369,2]
[389968800,1759913439657,-500.0,0.00021369,2]
[389968801,1759913439666,-500.0,0.00021369,2]
[389968802,1759913439676,-501.20150607,0.00021369,2]
[389968803,1759913439686,-500.0,0.00021369,2]
[389968804,1759913439695,-500.0,0.00021369,2]
[389968805,1759913439705,-500.0,0.00021369,2]
[389968806,1759913439715,-500.0,0.00021369,2]
[389968807,1759913439724,-500.72186928,0.00021369,2]
[389968808,1759913439734,-500.0,0.00021369,2]
[389968809,1759913439744,-500.0,0.00021369,2]
[389968810,1759913439753,-500.0,0.00021369,2]
[389968811,1759913439763,-500.0,0.00021369,2]
[389968812,1759913439772,-500.0,0.00021369,2]
[389968813,1759913439782,-500.0,0.00021369,2]
[389968815,1759913439792,-500.0,0.00021369,2]
[389968817,1759913439801,-500.0,0.00021369,2]
[389968818,1759913439811,-500.0,0.00021369,2]
[389968819,1759913439821,-500.0,0.00021369,2]
[389968820,1759913439831,-500.0,0.00021369,2]
[389968822,1759913439840,-250.62981531,0.00021369,2]
[389968824,1759913439850,-474.12077266,0.00021369,2]
[389968825,1759913439859,-500.0,0.00021369,2]
[389968826,1759913439868,-500.0,0.00021369,2]
[389968827,1759913439878,-502.75467202,0.00021369,2]
[389968828,1759913439887,-501.38241877,0.00021369,2]
[389968829,1759913439897,-501.40964491,0.00021369,2]
[389968830,1759913439906,-507.46758742,0.00021369,2]
[389968831,1759913439915,-500.0,0.00021369,2]
[389968832,1759913439924,-500.46448653,0.00021369,2]
[389968833,1759913439933,-500.0,0.00021369,2]
[389968834,1759913439942,-500.0,0.00021369,2]
[389968836,1759913439951,-500.0,0.00021369,2]
[389968837,1759913439961,-501.12144377,0.00021369,2]
[389968838,1759913439970,-500.0,0.00021369,2]
[389968839,1759913439979,-500.0,0.00021369,2]
[389968840,1759913439988,-482.28762213,0.00021369,2]
[389968841,1759913439997,-500.0,0.00021369,2]
[389968842,1759913440006,-500.0,0.00021369,2]
[389968843,1759913440023,-500.0,0.00021369,2]
[389968844,1759913440037,-414.29215324,0.00021369,2]
[389968845,1759913440052,-501.61389189,0.00021369,2]
[389968846,1759913440064,-682.06,0.00021369,2]
[389968847,1759913440076,-500.0,0.00021369,2]
[389968848,1759913440090,-500.0,0.00021369,2]
[389968849,1759913440103,-500.0,0.00021369,2]
[389968850,1759913440117,-500.0,0.00021369,2]
[389968851,1759913440133,-500.0,0.00021369,2]
[389968852,1759913440146,-206.51381866,0.00021369,2]
[389968854,1759913440160,-500.0,0.00021369,2]
[389968857,1759913440175,-500.0,0.00021369,2]
[389968859,1759913440187,-151.0,0.00021369,7]
[389968861,1759913440202,-521.56841181,0.00021369,2]
[389968864,1759913440214,-500.0,0.00021369,2]
[389968866,1759913440226,-502.71838591,0.00021369,2]
[389968868,1759913440239,-455.37443687,0.00021369,2]
[389968871,1759913440253,-151.0,0.00021369,7]
[389968873,1759913440265,-500.0,0.00021369,2]
[389968875,1759913440275,-502.06518896,0.00021369,2]
[389968877,1759913440286,-500.0,0.00021369,2]
[389968879,1759913440297,-151.0,0.00021369,7]
[389968882,1759913440310,-690.16,0.00021369,2]
[389968884,1759913440322,-151.0,0.00021369,7]
[389968887,1759913440335,-500.0,0.00021369,2]
[389968889,1759913440349,-1513.45,0.00021369,2]
[389968891,1759913440364,-483.80748665,0.00021369,2]
[389968894,1759913440378,-500.0,0.00021369,2]
[389968896,1759913440392,-1578.66,0.00021369,2]
[389968898,1759913440403,-4111.57,0.00021369,2]
[389968900,1759913440414,-2877.6,0.00021369,2]
[389968902,1759913440425,-1572.12,0.00021369,2]
[389968905,1759913440437,-500.0,0.00021369,2]
[389968907,1759913440451,-500.0,0.00021369,2]
[389968910,1759913440464,-895.04,0.00021369,2]
[389968912,1759913440474,-500.0,0.00021369,2]
[389968914,1759913440485,-500.0,0.00021369,2]
[389968916,1759913440496,-500.0,0.00021369,2]
[389968919,1759913440510,-968.13,0.00021369,2]
[389968921,1759913440520,-409.03370541,0.00021369,2]
[389968923,1759913440531,-1373.02,0.00021369,2]
[389968925,1759913440542,-180.11,0.00021369,2]
[389968927,1759913440554,-780.69,0.00021369,2]
[389968930,1759913440565,-954.16,0.00021369,2]
[389968932,1759913440576,-500.0,0.00021369,2]
[389968934,1759913440587,-151.0,0.00021369,7]
[389968936,1759913440600,-500.0,0.00021369,2]
[389968938,1759913440611,-500.0,0.00021369,2]
[389968941,1759913440626,-500.0,0.00021369,2]
[389968943,1759913440637,-1299.66,0.00021369,2]
[389968945,1759913440649,-500.0,0.00021369,2]
[389968948,1759913440663,-152.22753,0.00021369,7]
[389968950,1759913440677,-1806.65,0.00021369,2]
[389968952,1759913440693,-794.23,0.00021369,2]
[389968955,1759913440706,-270.02160035,0.00021369,2]
[389968957,1759913440719,-500.0,0.00021369,2]
[389968959,1759913440732,-428.099582,0.00021369,7]
[389968961,1759913440745,-500.0,0.00021369,2]
[389968963,1759913440757,-428.099582,0.00021369,7]
[389968966,1759913440770,-428.099582,0.00021369,7]
[389968968,1759913440781,-1646.66,0.00021369,2]
[389968970,1759913440793,-500.0,0.00021369,2]
[389968972,1759913440805,-428.099582,0.00021369,7]
[389968974,1759913440818,-619.78,0.00021369,2]
[389968977,1759913440830,-1000.0,0.00021369,2]
[389968979,1759913440846,-151.0,0.00021369,7]
[389968981,1759913440863,-500.0,0.00021369,2]
[389968983,1759913440876,-500.0,0.00021369,2]
[389968985,1759913440889,-533.6232091,0.00021369,2]
[389968987,1759913440903,-500.0,0.00021369,2]
[389968990,1759913440916,-500.0,0.00021369,2]
[389968992,1759913440930,-500.0,0.00021369,2]
[389968994,1759913440943,-486.66243912,0.00021369,2]
[389968996,1759913440955,-500.0,0.00021369,2]
[389968999,1759913440969,-500.0,0.00021369,2]
[389969001,1759913440981,-1306.84,0.00021369,2]
[389969003,1759913440993,-500.0,0.00021369,2]
[389969005,1759913441005,-500.0,0.00021369,2]
[389969007,1759913441016,-500.0,0.00021369,2]
[389969010,1759913441028,-500.0,0.00021369,2]
[389969012,1759913441041,-2177.35,0.00021369,2]
[389969014,1759913441053,-1112.03,0.00021369,2]
[389969017,1759913441065,-518.51,0.00021369,2]
[389969019,1759913441077,-504.98734939,0.00021369,2]
[389969021,1759913441088,-1302.4,0.00021369,2]
[389969023,1759913441102,-791.82,0.00021369,2]
[389969025,1759913441114,-500.0,0.00021369,2]
[389969027,1759913441131,-500.0,0.00021369,2]
[389969030,1759913441142,-500.0,0.00021369,2]
[389969032,1759913441154,-500.0,0.00021369,2]
[389969034,1759913441166,-500.0,0.00021369,2]
[389969036,1759913441177,-1509.04,0.00021369,2]
[389969038,1759913441189,-1509.04,0.00021369,2]
[389969041,1759913441200,-1509.04,0.00021369,2]
[389969043,1759913441212,-1509.04,0.00021369,2]
[389969045,1759913441224,-1509.04,0.00021369,2]
[389969047,1759913441236,-1509.04,0.00021369,2]
[389969049,1759913441248,-1509.04,0.00021369,2]
[389969052,1759913441259,-1509.04,0.00021369,2]
[389969054,1759913441270,-1509.04,0.00021369,2]
[389969056,1759913441282,-1509.04,0.00021369,2]
[389969058,1759913441295,-1509.04,0.00021369,2]
[389969060,1759913441306,-1509.04,0.00021369,2]
[389969063,1759913441317,-1509.04,0.00021369,2]
[389969065,1759913441328,-1509.04,0.00021369,2]
[389969067,1759913441339,-1509.04,0.00021369,2]
[389969069,1759913441350,-1509.04,0.00021369,2]
[389969072,1759913441362,-1509.04,0.00021369,2]
[389969074,1759913441374,-1509.04,0.00021369,2]
[389969076,1759913441386,-1509.04,0.00021369,2]
[389969078,1759913441397,-1509.04,0.00021369,2]
[389969081,1759913441409,-1509.04,0.00021369,2]
[389969083,1759913441422,-1509.04,0.00021369,2]
[389969085,1759913441434,-519.18,0.00021369,2]
[389969087,1759913441445,-1509.04,0.00021369,2]
[389969090,1759913441457,-500.0,0.00021369,2]
[389969092,1759913441469,-1509.2412304,0.00021369,2]
[389969094,1759913441483,-746.88,0.00021369,2]
[389969096,1759913441495,-6229.14,0.00021369,2]
[389969099,1759913441507,-500.0,0.00021369,2]
[389969101,1759913441519,-972.97,0.00021369,2]
[389969103,1759913441531,-507.45699498,0.00021369,2]
[389969105,1759913441542,-500.0,0.00021369,2]
[389969108,1759913441554,-151.0,0.00021369,7]
[389969110,1759913441567,-636.39,0.00021369,2]
[389969112,1759913441580,-554.32,0.00021369,2]
[389969115,1759913441591,-500.0,0.00021369,2]
[389969117,1759913441603,-500.0,0.00021369,2]
[389969119,1759913441615,-1727.69,0.00021369,2]
[389969121,1759913441627,-500.0,0.00021369,2]
[389969123,1759913441638,-1075.08,0.00021369,2]
[389969126,1759913441650,-500.0,0.00021369,2]
[389969128,1759913441662,-500.0,0.00021369,2]
[389969130,1759913441673,-500.0,0.00021369,2]
[389969133,1759913441689,-500.0,0.00021369,2]
[389969135,1759913441700,-500.0,0.00021369,2]
[389969137,1759913441712,-500.0,0.00021369,2]
[389969139,1759913441722,-2905.59,0.00021369,2]
[389969141,1759913441734,-500.0,0.00021369,2]
[389969144,1759913441746,-634.54,0.00021369,2]
[389969146,1759913441758,-1103.5,0.00021369,2]
[389969148,1759913441769,-500.0,0.00021369,2]
[389969150,1759913441781,-864.82,0.00021369,2]
[389969153,1759913441793,-183.077275,0.00021369,7]
[389969155,1759913441805,-655.84,0.00021369,2]
[389969157,1759913441817,-1245.2,0.00021369,2]
[389969159,1759913441828,-500.33806792,0.00021369,2]
[389969162,1759913441843,-890.71,0.00021369,2]
[389969164,1759913441856,-500.0,0.00021369,2]
[389969166,1759913441868,-500.0,0.00021369,2]
[389969169,1759913441879,-502.25990697,0.00021369,2]
[389969171,1759913441891,-500.0,0.00021369,2]
[389969173,1759913441902,-500.0,0.00021369,2]
[389969175,1759913441913,-502.89986826,0.00021369,2]
[389969178,1759913441925,-151.00000077,0.00021369,7]
[389969180,1759913441935,-2880.48,0.00021369,2]
[389969182,1759913441947,-500.0,0.00021369,2]
[389969184,1759913441959,-151.0,0.00021369,7]
[389969187,1759913441971,-2154.51,0.00021369,2]
[389969189,1759913441982,-151.0,0.00021369,7]
[389969191,1759913441993,-500.0,0.00021369,2]
[389969193,1759913442004,-500.0,0.00021369,2]
[389969196,1759913442016,-151.90159,0.00021369,7]
[389969198,1759913442028,-500.0,0.00021369,2]
[389969200,1759913442040,-500.0,0.00021369,2]
[389969202,1759913442051,-500.0,0.00021369,2]
[389969205,1759913442062,-500.0,0.00021369,2]
[389969207,1759913442073,-500.0,0.00021369,2]
[389969209,1759913442085,-151.778011,0.00021369,7]
[389969211,1759913442096,-151.0,0.00021369,7]
[389969214,1759913442108,-662.23,0.00021369,2]
[389969216,1759913442119,-574.51,0.00021369,2]
[389969218,1759913442134,-151.0,0.00021369,7]
[389969220,1759913442144,-151.0,0.00021369,7]
[389969222,1759913442153,-500.0,0.00021369,2]
[389969224,1759913442163,-500.0,0.00021369,2]
[389969226,1759913442172,-500.0,0.00021369,2]
[389969228,1759913442181,-464.69227011,0.00021369,2]
[389969230,1759913442191,-500.0,0.00021369,2]
[389969232,1759913442201,-151.0,0.00021369,7]
[389969234,1759913442210,-1135.42,0.00021369,2]
[389969236,1759913442220,-151.0,0.00021369,7]
[389969238,1759913442229,-151.0,0.00021369,7]
[389969240,1759913442239,-500.0,0.00021369,2]
[389969242,1759913442248,-481.17013988,0.00021369,2]
[389969278,1759913442560,-500.0,0.00021369,2]
[389969282,1759913442588,-2101.75,0.00021369,2]
[389969285,1759913442605,-500.0,0.00021369,2]
[389969287,1759913442614,-874.21,0.00021369,2]
[389969289,1759913442624,-500.0,0.00021369,2]
[389969291,1759913442633,-500.0,0.00021369,2]
[389969293,1759913442642,-500.0,0.00021369,2]
[389969295,1759913442652,-1743.28,0.00021369,2]
[389969297,1759913442661,-500.0,0.00021369,2]
[389969299,1759913442670,-500.0,0.00021369,2]
[389969301,1759913442680,-500.0,0.00021369,2]
[389969303,1759913442689,-571.66,0.00021369,2]
[389969305,1759913442699,-500.0,0.00021369,2]
[389969307,1759913442708,-500.0,0.00021369,2]
[389969309,1759913442717,-151.0,0.00021369,7]
[389969311,1759913442727,-500.0,0.00021369,2]
[389969313,1759913442736,-2241.08,0.00021369,2]
[389969316,1759913442746,-500.0,0.00021369,2]
[389969318,1759913442755,-1065.5,0.00021369,2]
[389969320,1759913442765,-612.62,0.00021369,2]
[389969322,1759913442774,-1292.84,0.00021369,2]
[389969325,1759913442784,-500.0,0.00021369,2]
[389969330,1759913442797,-5907.89,0.00021369,2]
[389969333,1759913442807,-500.0,0.00021369,2]
[389969335,1759913442817,-871.6,0.00021369,2]
[389969338,1759913442827,-500.0,0.00021369,2]
[389969341,1759913442838,-2282.0,0.00021369,2]
[389969343,1759913442847,-662.79,0.00021369,2]
[389969344,1759913442857,-662.79,0.00021369,2]
[389969347,1759913442866,-662.79,0.00021369,2]
[389969349,1759913442875,-662.79,0.00021369,2]
[389969352,1759913442884,-662.79,0.00021369,2]
[389969355,1759913442893,-662.79,0.00021369,2]
[389969357,1759913442902,-662.79,0.00021369,2]
[389969359,1759913442912,-662.79,0.00021369,2]
[389969361,1759913442921,-151.0,0.00021369,7]
[389969363,1759913442931,-662.79,0.00021369,2]
[389969367,1759913442944,-151.0,0.00021369,7]
[389969370,1759913442954,-662.79,0.00021369,2]
[389969372,1759913442963,-662.79,0.00021369,2]
[389969374,1759913442972,-662.79,0.00021369,2]
[389969376,1759913442982,-662.79,0.00021369,2]
[389969378,1759913442992,-662.79,0.00021369,2]
[389969380,1759913443002,-151.0,0.00021369,7]
[389969382,1759913443011,-662.79,0.00021369,2]
[389969384,1759913443020,-151.0,0.00021369,7]
[389969386,1759913443030,-662.79,0.00021369,2]
[389969388,1759913443040,-662.79,0.00021369,2]
[389969390,1759913443049,-500.0,0.00021369,2]
[389969392,1759913443059,-662.79,0.00021369,2]
[389969394,1759913443068,-662.79,0.00021369,2]
[389969396,1759913443077,-464.31311443,0.00021369,2]